bitfinex-derivatives/quotes_ETHF0:USTF0_20250530
["timestamp","ask_amount","ask_price","bid_price","bid_amount"]
[1748566888298,5.00580833,2586.6,2585.6,0.00580833]
[1748566888299,3.2078,2586.1,2585.6,0.00580833]
[1748566889395,3.2078,2586.5,2585.6,0.00580833]
[1748566889593,4.5419,2586.5,2585.6,2.56924449]
[1748566889793,4.5419,2586.5,2585.6,0.00580833]
[1748566889993,3.2078,2586.2,2585.6,0.00580833]
[1748566890196,3.2078,2585.8,2585.6,0.00580833]
[1748566891101,1.3341,2586.1,2585.7,2.56343616]
[1748566891303,3.2078,2586.4,2585.8,3.92633616]
[1748566891490,0.9678863,2586.3,2585.8,1.3629]
[1748566891801,3.2078,2586.1,2585.6,0.00580833]
[1748566892006,3.2078,2585.8,2585.6,0.00580833]
[1748566892598,8.2078,2585.8,2585.6,0.00580833]
[1748566892800,0.96789889,2585.7,2585.6,0.00580833]
[1748566893003,2.26729889,2585.7,2585.6,0.00580833]
[1748566893302,2.26740728,2585.7,2585.6,0.00580833]
[1748566893507,1.2994,2585.7,2585.6,0.00580833]
[1748566894294,3.2078,2585.8,2585.6,0.00580833]
[1748566895205,0.06993857,2585.7,2585.6,0.00580833]
[1748566895397,1.46733857,2585.7,2585.6,0.00580833]
[1748566895599,6.46733857,2585.7,2585.6,0.00580833]
[1748566895799,1.46733857,2585.7,2585.6,0.00580833]
[1748566895997,1.46733857,2585.7,2584.4,1.354]
[1748566895998,7.43646335,2585.7,2584.6,3.2078]
[1748566896201,3.2078,2585.2,2585.0,2.56343616]
[1748566896394,3.2078,2585.2,2584.6,5.77123616]
[1748566896601,3.2078,2585.2,2584.8,2.56343616]
[1748566896800,3.2078,2585.2,2584.9,1.4211]
[1748566897012,3.2078,2585.5,2585.1,2.56343616]
[1748566897306,3.2078,2585.5,2585.3,2.56343616]
[1748566897501,3.2078,2585.5,2585.4,1.4315]
[1748566897704,3.2078,2585.5,2585.0,0.00387218]
[1748566897903,0.00580833,2585.6,2585.4,5.77123616]
[1748566898106,0.06993857,2585.7,2585.6,2.56343616]
[1748566898608,3.27773857,2585.7,2585.5,1.4315]
[1748566898905,0.06993857,2585.7,2585.6,2.56343616]
[1748566899299,0.06993857,2585.7,2585.6,10.77123616]
[1748566900006,3.2078,2586.2,2585.8,2.56343616]
[1748566900410,3.2078,2586.2,2585.2,4.6393]
[1748566900603,3.2078,2586.2,2586.1,2.56343616]
[1748566900808,3.2078,2586.2,2585.8,2.56343616]
[1748566901008,3.2078,2586.2,2585.7,0.00580833]
[1748566901311,3.2078,2585.9,2585.7,2.56924449]
[1748566901502,3.2078,2585.9,2585.7,0.00580833]
[1748566902008,1.326,2585.8,2585.7,0.00580833]
[1748566902407,0.00580833,2586.3,2585.7,0.00580833]
[1748566902408,3.2078,2586.2,2585.7,0.00580833]
[1748566902603,3.2078,2585.9,2585.7,0.00580833]
[1748566903008,1.326,2585.8,2585.7,0.00580833]
[1748566903404,1.326,2585.8,2584.7,3.2078]
[1748566903405,6.326,2585.8,2584.7,3.2078]
[1748566903711,3.2078,2585.2,2584.8,2.56343616]
[1748566903912,3.2078,2585.2,2584.8,3.99683616]
[1748566905010,3.2078,2585.6,2585.1,5.77123616]
[1748566905211,3.2078,2585.6,2585.4,2.56343616]
[1748566905415,3.2078,2585.6,2585.5,2.56343616]
[1748566905622,3.2078,2585.6,2585.2,1.4334]
[1748566905914,4.5394,2585.6,2585.2,1.4334]
[1748566906107,4.5394,2585.6,2584.8,3.2078]
[1748566906309,4.5394,2585.6,2585.1,2.56343616]
[1748566906513,4.5394,2585.6,2584.8,4.5256]
[1748566906514,0.06993857,2585.7,2585.3,2.56343616]
[1748566906716,1.3485,2585.6,2585.3,2.56343616]
[1748566907407,4.5563,2585.6,2584.9,1.3178]
[1748566907617,4.5563,2585.6,2585.0,2.56343616]
[1748566908113,4.5563,2585.6,2585.1,2.56343616]
[1748566908302,4.5563,2585.6,2585.2,2.56343616]
[1748566908511,4.5563,2585.6,2585.3,2.56343616]
[1748566908714,4.5563,2585.6,2584.7,0.00580833]
[1748566908909,3.2078,2585.3,2584.7,0.00580833]
[1748566909119,3.2078,2585.0,2584.7,0.00580833]
[1748566909417,1.4111,2584.9,2584.7,0.00580833]
[1748566910116,0.2504992,2585.3,2584.7,2.56924449]
[1748566910307,3.2078,2585.4,2584.9,2.56343616]
[1748566910707,3.2078,2585.4,2585.2,2.56343616]
[1748566910915,3.2078,2585.4,2585.3,2.56343616]
[1748566911318,3.2078,2585.4,2585.0,1.3128]
[1748566911613,3.2078,2585.4,2584.7,0.00580833]
[1748566911917,3.2078,2584.8,2584.7,0.00580833]
[1748566912113,3.2078,2585.1,2584.8,2.56343616]
[1748566912309,3.2078,2585.5,2584.9,2.56343616]
[1748566912515,3.2078,2585.5,2584.8,1.4193]
[1748566912814,3.2078,2585.2,2584.7,2.56924449]
[1748566913019,1.386,2585.1,2584.7,0.00580833]
[1748566913208,3.2078,2584.8,2584.7,0.00580833]
[1748566913415,3.2078,2585.5,2585.2,2.56343616]
[1748566913615,3.2078,2585.5,2585.3,2.56343616]
[1748566913912,3.2078,2585.5,2584.8,1.4193]
[1748566913913,3.2078,2585.5,2585.2,2.56343616]
[1748566914314,3.2078,2585.5,2584.8,1.4193]
[1748566914518,3.2078,2585.5,2585.3,2.56343616]
[1748566914918,4.5938,2585.5,2584.8,1.4193]
[1748566915117,4.5938,2585.5,2585.0,2.56343616]
[1748566915418,4.5938,2585.5,2585.1,2.56343616]
[1748566915609,4.5938,2585.5,2585.0,2.56343616]
[1748566915816,3.2078,2585.5,2585.3,2.56343616]
[1748566916324,3.2078,2585.5,2585.1,1.3941]
[1748566916517,3.2078,2585.5,2585.3,2.56343616]
[1748566916725,0.06993857,2585.6,2585.3,5.77123616]
[1748566917023,0.06993857,2585.6,2585.5,2.56343616]
[1748566917715,0.06993857,2585.6,2585.4,1.3941]
[1748566917716,3.27773857,2585.6,2585.4,1.3941]
[1748566917910,3.27773857,2585.6,2585.0,3.2078]
[1748566918119,0.06993857,2585.6,2585.5,2.56343616]
[1748566918926,0.06993857,2585.6,2585.5,2.55233656]
[1748566919615,0.00580833,2586.3,2585.5,7.55233656]
[1748566919817,0.00580833,2586.3,2586.2,2.55233656]
[1748566920421,0.00580833,2586.3,2585.0,3.04761721]
[1748566920422,8.21360833,2586.3,2585.4,3.2078]
[1748566920719,0.00580833,2586.3,2585.6,2.55233656]
[1748566921029,3.2078,2585.7,2584.7,3.21360833]
[1748566921218,3.2078,2585.5,2584.8,2.55233656]
[1748566921525,3.2078,2585.2,2584.7,3.21360833]
[1748566921721,3.2078,2584.9,2584.7,0.00580833]
[1748566921912,3.2078,2584.9,2583.7,1.4269]
[1748566922112,3.2078,2583.8,2583.1,2.55233656]
[1748566922316,37.15545677,2584.8,2583.2,0.07742335]
[1748566922317,1.3545,2583.7,2583.2,0.07742335]
[1748566922520,3.2078,2583.3,2583.2,0.07742335]
[1748566922918,8.2078,2583.3,2583.2,0.07742335]
[1748566923620,8.2078,2583.3,2582.1,1.4269]
[1748566923820,3.2078,2583.1,2582.6,2.55233656]
[1748566924034,3.2078,2583.1,2583.0,2.55233656]
[1748566924328,0.00580833,2583.5,2583.0,5.8375659]
[1748566924520,0.00580833,2583.5,2583.3,2.55233656]
[1748566924918,0.00580833,2583.5,2582.5,3.2078]
[1748566925122,3.2078,2583.1,2582.5,2.55233656]
[1748566925430,3.2078,2582.8,2582.0,1.4948]
[1748566925624,1.5156,2582.7,2582.4,2.55233656]
[1748566926021,1.5156,2582.7,2580.5,39.003]
[1748566926022,3.2078,2582.5,2581.2,4.5729]
[1748566926218,3.21360833,2582.1,2581.8,2.55233656]
[1748566926421,0.00580833,2582.1,2582.0,2.55233656]
[1748566926818,0.00580833,2582.1,2582.0,5.76013656]
[1748566927031,0.00580833,2582.1,2582.0,2.55233656]
[1748566927524,3.2078,2582.7,2582.0,10.76013656]
[1748566927718,3.2078,2582.7,2582.3,2.55233656]
[1748566928120,1.3887,2582.6,2581.9,1.4948]
[1748566928326,3.2078,2582.2,2581.9,1.4948]
[1748566928532,0.00580833,2582.3,2582.2,2.55233656]
[1748566928837,0.00580833,2582.3,2582.0,3.2078]
[1748566929125,0.00580833,2582.3,2582.2,2.55233656]
[1748566929333,3.2078,2582.9,2582.2,2.55233656]
[1748566929526,0.1847,2583.2,2582.8,2.55233656]
[1748566929724,0.1847,2583.2,2582.2,5.0]
[1748566929725,3.2078,2584.4,2583.2,2.55233656]
[1748566929921,3.2078,2584.4,2584.1,2.55233656]
[1748566930322,0.00580833,2584.5,2584.3,2.55233656]
[1748566930533,3.21360833,2584.5,2584.0,0.00580833]
[1748566930726,3.2078,2584.4,2584.0,0.00580833]
[1748566930927,1.5198,2584.4,2584.3,2.55233656]
[1748566931122,1.5198,2584.4,2584.1,2.55233656]
[1748566931432,1.5198,2584.4,2584.0,0.00580833]
[1748566931835,3.2078,2584.1,2582.7,3.2078]
[1748566932029,3.2078,2583.7,2583.3,2.55233656]
[1748566932328,3.2078,2583.7,2583.0,2.55233656]
[1748566932540,0.06993857,2583.3,2582.7,3.2078]
[1748566932735,1.5198,2583.2,2582.5,1.4656]
[1748566932929,3.2078,2582.9,2582.7,2.55233656]
[1748566933428,3.2078,2582.9,2582.6,0.00580833]
[1748566933626,3.2078,2582.9,2581.6,3.2078]
[1748566933627,1.4593,2582.8,2581.6,3.2078]
[1748566933939,3.2078,2582.7,2582.1,2.55233656]
[1748566934128,3.2078,2582.7,2581.6,3.2078]
[1748566934129,1.4593,2582.6,2582.0,2.55233656]
[1748566934323,3.2078,2582.4,2581.7,1.5103]
[1748566934542,3.2078,2582.4,2582.3,2.55233656]
[1748566934725,1.4593,2583.0,2582.3,2.55233656]
[1748566934726,3.2078,2582.8,2582.3,2.55233656]
[1748566934931,3.2078,2582.8,2581.7,1.5103]
[1748566934932,3.2078,2582.8,2582.4,4.06263656]
[1748566935137,1.4593,2582.7,2582.6,2.55233656]
[1748566935437,0.00580833,2583.1,2582.9,2.55233656]
[1748566935830,3.2078,2583.0,2581.8,3.2078]
[1748566936132,3.2078,2582.7,2582.4,2.55233656]
[1748566936329,3.2078,2582.7,2582.3,2.55233656]
[1748566936535,1.4593,2582.6,2582.3,2.55233656]
[1748566936828,0.00580833,2583.1,2582.6,2.55233656]
[1748566937030,0.00580833,2583.1,2583.0,2.55233656]
[1748566937235,0.00580833,2583.1,2583.0,5.76013656]
[1748566937435,0.00580833,2583.1,2583.0,10.76013656]
[1748566937834,2.14821651,2585.9,2584.4,3.2078]
[1748566938041,2.14821651,2585.9,2585.5,3.2078]
[1748566938341,3.2078,2586.8,2585.8,2.55233656]
[1748566938342,1.4698,2586.3,2585.8,2.55233656]
[1748566938635,1.4698,2586.3,2585.5,3.2078]
[1748566938636,3.2078,2586.1,2585.5,2.55233656]
[1748566938842,1.4698,2586.0,2585.5,0.00580833]
[1748566939030,0.00580833,2586.1,2585.6,4.01633656]
[1748566939233,0.00580833,2586.1,2585.5,3.21360833]
[1748566939234,0.00580833,2586.1,2585.8,3.2078]
[1748566939427,0.00580833,2586.1,2586.0,2.55233656]
[1748566941336,0.00580833,2586.1,2585.8,3.2078]
[1748566941536,0.00580833,2586.1,2586.0,2.55233656]
[1748566942049,0.00580833,2586.1,2585.6,1.464]
[1748566942239,0.00580833,2586.1,2585.7,2.55233656]
[1748566942643,0.00580833,2586.1,2585.5,3.21360833]
[1748566942843,1.39080833,2586.1,2585.5,0.00580833]
[1748566943144,3.2078,2585.6,2585.5,0.00580833]
[1748566943343,3.2078,2585.6,2584.6,3.2078]
[1748566943539,3.2078,2584.7,2583.7,3.2078]
[1748566943741,3.2078,2584.3,2583.8,2.55233656]
[1748566943938,1.385,2584.2,2583.8,2.55233656]
[1748566944141,3.2078,2583.9,2583.2,3.2078]
[1748566944337,1.39080833,2583.8,2583.6,2.55233656]
[1748566944540,1.39080833,2583.8,2583.5,2.55233656]
[1748566944847,0.00580833,2583.8,2583.7,5.76013656]
[1748566945149,3.2078,2584.8,2583.7,5.76013656]
[1748566945347,3.2078,2584.2,2583.7,5.76013656]
[1748566945541,1.385,2584.1,2583.9,2.55233656]
[1748566945737,1.385,2584.1,2583.7,3.2078]
[1748566945941,1.385,2584.1,2583.6,5.76013656]
[1748566946243,1.385,2584.1,2583.6,2.55814489]
[1748566946547,1.385,2584.1,2583.6,5.76594489]
[1748566946939,0.00580833,2584.2,2584.0,2.55233656]
[1748566947147,0.00580833,2584.2,2583.9,3.2078]
[1748566947148,0.00580833,2584.2,2584.1,2.55233656]
[1748566947350,0.00580833,2584.2,2584.0,2.55233656]
[1748566947643,0.00580833,2584.2,2583.8,2.55233656]
[1748566947846,3.21360833,2584.2,2583.6,0.00580833]
[1748566948048,1.493,2584.1,2583.6,0.00580833]
[1748566948350,3.2078,2584.0,2583.6,0.00580833]
[1748566948645,1.493,2583.9,2583.6,0.00580833]
[1748566949443,0.00580833,2584.2,2583.8,5.76013656]
[1748566949645,0.00580833,2584.2,2584.1,2.55233656]
[1748566949956,0.00580833,2584.2,2584.1,5.76013656]
[1748566950338,3.2078,2584.9,2584.1,10.76013656]
[1748566950543,1.4322,2585.6,2584.8,5.76013656]
[1748566950841,3.2078,2585.7,2585.4,2.55233656]
[1748566951045,3.2078,2585.7,2585.1,2.55233656]
[1748566951254,4.64,2585.6,2584.9,1.4912]
[1748566951444,4.64,2585.6,2585.1,5.76594489]
[1748566952550,4.64,2585.6,2585.2,2.55233656]
[1748566952742,4.64,2585.6,2585.1,3.21360833]
[1748566953052,4.64,2585.6,2585.1,0.00580833]
[1748566953256,3.2078,2585.2,2585.1,0.00580833]
[1748566953458,3.2078,2585.2,2584.1,3.2078]
[1748566953748,3.2078,2584.9,2584.1,3.2078]
[1748566953956,1.4612,2584.8,2584.2,2.55233656]
[1748566954143,1.4612,2584.8,2584.1,3.2078]
[1748566954344,1.4612,2584.8,2584.6,2.55233656]
[1748566955149,3.2078,2585.0,2584.6,2.55233656]
[1748566955546,1.6112,2584.9,2584.6,2.55233656]
[1748566955944,3.2078,2584.7,2584.4,0.00580833]
[1748566956146,1.6112,2584.6,2583.9,3.2078]
[1748566956346,1.6112,2584.6,2584.0,2.55233656]
[1748566956553,3.2078,2584.2,2583.6,3.2078]
[1748566956748,3.2078,2583.9,2583.2,1.5395]
[1748566956948,3.2078,2583.3,2582.5,3.2078]
[1748566957153,3.2078,2582.9,2582.8,2.38805753]
[1748566957347,3.47034886,2582.9,2582.4,2.38805753]
[1748566957546,3.2078,2582.5,2582.4,2.38805753]
[1748566957749,0.1842,2582.5,2582.1,1.5395]
[1748566957955,0.1842,2582.5,2582.4,2.38805753]
[1748566959457,0.1842,2582.5,2582.1,1.5395]
[1748566959656,3.2078,2582.3,2581.7,3.2078]
[1748566959848,4.9072,2582.4,2581.7,2.38805753]
[1748566960052,0.1842,2582.5,2582.1,2.38805753]
[1748566960447,0.1842,2582.5,2581.4,3.2078]
[1748566960448,4.9072,2582.4,2581.5,1.6728]
[1748566960753,4.9072,2582.4,2581.6,3.2078]
[1748566960958,0.1842,2582.5,2582.3,2.38805753]
[1748566961158,0.1842,2582.5,2582.4,2.38805753]
[1748566961352,0.1842,2582.5,2582.4,5.59585753]
[1748566961555,0.00580833,2583.1,2582.4,10.59585753]
[1748566961757,0.00580833,2583.1,2583.0,2.38805753]
[1748566961958,3.2078,2584.2,2583.0,2.38805753]
[1748566962252,4.79,2584.5,2584.2,2.38805753]
[1748566962557,3.2078,2584.5,2584.3,2.38805753]
[1748566962960,3.2078,2584.5,2584.1,0.00580833]
[1748566963154,0.00580833,2584.7,2584.3,2.38805753]
[1748566963358,1.5822,2584.4,2584.1,0.00580833]
[1748566963756,1.5822,2584.4,2584.1,2.39386586]
[1748566963957,1.5822,2584.4,2584.1,0.00580833]
[1748566964954,3.2078,2584.2,2583.1,3.2078]
[1748566965154,1.6369,2584.1,2583.9,2.38805753]
[1748566965359,1.6369,2584.1,2583.8,2.38805753]
[1748566965753,4.8447,2584.6,2583.9,4.06565753]
[1748566965959,4.8447,2584.6,2584.1,2.38805753]
[1748566966159,4.8447,2584.6,2584.3,2.38805753]
[1748566966457,4.8447,2584.6,2583.4,3.2078]
[1748566966667,3.2078,2584.1,2583.7,2.38805753]
[1748566966958,3.2078,2583.8,2583.4,2.38805753]
[1748566967163,3.2078,2583.8,2583.2,3.95465753]
[1748566967164,1.6321,2583.7,2583.2,3.95465753]
[1748566967360,1.6321,2583.7,2583.4,2.38805753]
[1748566967562,3.2078,2584.6,2583.6,2.38805753]
[1748566967758,3.2078,2584.3,2583.8,2.38805753]
[1748566967959,1.6321,2584.2,2583.8,2.38805753]
[1748566968263,1.6321,2584.2,2583.5,1.5666]
[1748566968461,1.6321,2584.2,2583.8,2.38805753]
[1748566968769,3.2078,2583.9,2583.5,3.95465753]
[1748566968967,3.2078,2583.6,2583.0,3.2078]
[1748566969264,3.2078,2583.4,2582.6,1.6352]
[1748566969458,77.481,2585.1,2582.6,1.6352]
[1748566969459,3.2078,2583.1,2582.9,2.38805753]
[1748566969760,0.00580833,2583.3,2582.9,2.38805753]
[1748566969761,0.00580833,2583.3,2582.9,3.2078]
[1748566969963,3.21360833,2583.3,2582.9,3.2078]
[1748566970158,0.00580833,2583.3,2583.2,2.38805753]
[1748566970471,3.21360833,2583.3,2583.2,2.38805753]
[1748566970761,3.21360833,2583.3,2582.6,4.843]
[1748566970959,3.2078,2582.7,2581.5,3.2078]
[1748566971156,3.2078,2582.7,2581.8,3.2078]
[1748566971157,0.1934,2582.6,2581.8,3.2078]
[1748566971358,0.00580833,2582.5,2582.2,3.2078]
[1748566971559,0.00580833,2582.5,2582.3,1.551]
[1748566971755,0.00580833,2582.5,2582.4,2.38805753]
[1748566971962,0.00580833,2582.5,2582.3,1.551]
[1748566972558,0.00580833,2582.5,2582.4,2.38805753]
[1748566972960,3.2078,2583.1,2582.5,2.1888492]
[1748566973164,3.2078,2583.1,2583.0,2.1888492]
[1748566975268,0.00580833,2583.3,2583.0,7.1888492]
[1748566975465,0.00580833,2583.3,2583.2,5.3966492]
[1748566975665,0.06993857,2584.2,2583.2,8.2078]
[1748566975868,0.06993857,2584.2,2584.1,2.1888492]
[1748566976876,0.06993857,2584.2,2584.1,7.1888492]
[1748566978768,0.00580833,2584.4,2584.1,7.1888492]
[1748566979071,3.2078,2585.4,2584.3,3.2078]
[1748566979268,3.2078,2585.4,2584.8,3.2078]
[1748566979471,3.2078,2585.8,2585.3,2.1888492]
[1748566979661,3.2078,2585.8,2585.4,1.5681]
[1748566979975,3.2078,2586.1,2585.7,2.1888492]
[1748566980269,0.00580833,2585.9,2585.8,1.5681]
[1748566980477,3.2078,2586.7,2585.8,4.7759]
[1748566980674,3.2078,2587.3,2586.6,2.1888492]
[1748566980977,39.03,2588.8,2587.5,2.1888492]
[1748566980978,3.2078,2587.6,2587.5,2.1888492]
[1748566981167,3.28509169,2587.6,2587.0,3.2078]
[1748566981372,3.28509169,2587.6,2587.5,2.1888492]
[1748566981574,3.28509169,2587.6,2587.3,0.00579565]
[1748566981772,1.6005,2587.5,2587.3,0.00579565]
[1748566982972,3.28509169,2587.6,2587.3,2.19464485]
[1748566983172,8.28509169,2587.6,2587.3,0.00579565]
[1748566983364,8.28509169,2587.6,2584.5,3.77845934]
[1748566983365,1.5722,2587.5,2585.7,3.2078]
[1748566983570,1.5722,2587.5,2586.3,2.1888492]
[1748566983769,3.2078,2586.4,2585.8,3.8061492]
[1748566983971,3.2078,2586.1,2585.8,3.8061492]
[1748566984171,3.2078,2586.1,2585.2,4.745]
[1748566984372,0.00579565,2585.9,2585.4,0.00579565]
[1748566984578,3.2078,2585.5,2585.4,0.00579565]
[1748566984975,3.2078,2585.5,2585.4,2.19464485]
[1748566985173,3.2078,2585.8,2585.4,2.19464485]
[1748566985472,1.5982,2585.7,2585.5,2.1888492]
[1748566985669,1.5982,2585.7,2585.4,0.00579565]
[1748566985976,3.2078,2585.5,2585.4,0.00579565]
[1748566986475,8.2078,2585.5,2585.4,0.00579565]
[1748566986881,8.2078,2585.5,2583.7,4.8875]
[1748566987069,3.2078,2585.3,2585.2,2.1888492]
[1748566987270,3.2078,2585.3,2584.8,1.6418]
[1748566987472,3.2078,2585.6,2585.2,2.1888492]
[1748566987677,3.2078,2585.6,2583.8,0.07740537]
[1748566987678,0.00579565,2585.9,2585.8,2.1888492]
[1748566988173,0.00579565,2585.9,2585.6,0.00579565]
[1748566988366,3.2078,2585.7,2585.6,0.00579565]
[1748566989280,0.00579565,2585.9,2585.6,2.19464485]
[1748566989469,0.00579565,2585.9,2585.8,2.1888492]
[1748566989973,0.00579565,2585.9,2585.8,7.1888492]
[1748566990175,1.5896,2586.8,2585.8,10.3966492]
[1748566990482,3.2078,2586.6,2586.4,2.1888492]
[1748566990673,3.2078,2586.6,2586.5,2.1888492]
[1748566990878,3.2078,2587.3,2586.3,3.2078]
[1748566991077,2.88146065,2589.8,2585.9,5.0]
[1748566991078,0.37890949,2589.7,2587.9,2.1888492]
[1748566991385,0.37890949,2589.7,2585.9,5.0]
[1748566991386,0.00579565,2589.1,2589.0,2.1888492]
[1748566991674,3.21359565,2589.3,2588.8,2.1888492]
[1748566992176,0.07724393,2589.2,2588.6,1.719]
[1748566992382,0.07724393,2589.2,2588.9,2.1888492]
[1748566992580,0.07724393,2589.2,2588.6,1.719]
[1748566992581,0.07724393,2589.2,2589.1,2.1888492]
[1748566993282,0.07724393,2589.2,2588.6,1.719]
[1748566993584,0.07724393,2589.2,2588.7,2.1888492]
[1748566993774,3.2078,2588.9,2588.6,3.9078492]
[1748566993976,3.28504393,2589.2,2588.5,0.00579565]
[1748566994172,3.28504393,2589.2,2589.0,2.1888492]
[1748566994377,3.28504393,2589.2,2588.6,3.2078]
[1748566994573,3.28504393,2589.2,2588.7,3.8626492]
[1748566994786,3.28504393,2589.2,2588.9,2.1888492]
[1748566994986,3.28504393,2589.2,2588.5,0.00579565]
[1748566995282,3.2078,2588.6,2588.5,0.00579565]
[1748566995486,3.2078,2588.6,2587.6,3.2078]
[1748566995680,3.2078,2588.2,2587.8,2.1888492]
[1748566995981,3.2078,2588.2,2587.7,2.1888492]
[1748566996184,1.7195,2588.1,2587.4,2.1888492]
[1748566996379,1.7195,2588.1,2587.5,0.00579565]
[1748566996380,3.2078,2587.6,2587.5,0.00579565]
[1748566996880,8.2078,2587.6,2587.5,0.00579565]
[1748566997090,8.2078,2587.6,2586.5,3.2078]
[1748566997274,3.2078,2587.3,2587.0,2.1888492]
[1748566997584,3.2078,2587.3,2586.7,2.1888492]
[1748566997781,3.2078,2586.9,2586.6,1.6738]
[1748566997986,1.6244,2587.2,2586.9,2.1888492]
[1748566998176,3.2078,2587.1,2586.9,2.1888492]
[1748566998382,3.2078,2587.0,2586.6,1.6738]
[1748566998583,1.6244,2587.2,2586.6,1.6738]
[1748566998584,1.6244,2587.2,2586.9,2.1888492]
[1748566998781,1.6244,2587.2,2586.8,2.1888492]
[1748566998987,3.2078,2587.0,2586.6,1.6738]
[1748566999188,1.6244,2586.9,2586.5,0.00579565]
[1748566999387,3.2078,2587.0,2586.7,2.1888492]
[1748567000084,3.2078,2587.3,2586.7,2.1888492]
[1748567000288,1.6244,2587.2,2586.6,1.7063]
[1748567000587,0.06993857,2587.2,2587.0,2.1888492]
[1748567000789,0.06993857,2587.2,2587.1,2.1888492]
[1748567001091,0.00579565,2587.8,2587.1,5.3966492]
[1748567001286,3.2078,2588.4,2587.7,2.1888492]
[1748567001491,3.2078,2588.4,2588.2,2.1888492]
[1748567001688,4.8649,2589.0,2588.3,2.1888492]
[1748567001879,4.9421499,2589.0,2588.3,1.603]
[1748567002188,4.9421499,2589.0,2586.7,3.3649]
[1748567002189,3.2078,2588.4,2586.7,3.3649]
[1748567002493,6.7343499,2589.0,2587.3,0.00579565]
[1748567002494,3.2078,2587.4,2587.3,0.00579565]
[1748567002684,3.2078,2587.7,2587.3,2.19464485]
[1748567002991,3.2078,2587.7,2587.6,2.1888492]
[1748567003286,3.2078,2587.7,2587.4,2.1888492]
[1748567004087,3.2078,2587.7,2587.5,2.1888492]
[1748567004289,3.2078,2587.7,2587.4,2.1888492]
[1748567004489,3.2078,2587.7,2586.7,3.3649]
[1748567004490,8.2078,2587.7,2586.5,3.2078]
[1748567004682,3.2078,2587.3,2586.6,2.1888492]
[1748567004884,3.2078,2587.0,2586.6,2.1888492]
[1748567005080,1.683,2586.9,2586.5,3.2078]
[1748567005281,1.683,2586.9,2586.6,1.7305]
[1748567005487,0.00579565,2587.0,2586.8,2.1888492]
[1748567005690,0.00579565,2587.0,2586.6,1.7305]
[1748567005691,0.00579565,2587.0,2586.9,1.7305]
[1748567005890,0.00579565,2587.0,2586.9,3.9193492]
[1748567006391,0.00579565,2587.0,2586.9,1.7305]
[1748567006592,0.00579565,2587.0,2586.9,3.9193492]
[1748567007291,0.00579565,2587.0,2586.9,2.1888492]
[1748567008391,8.21359565,2587.0,2586.5,0.00579565]
[1748567008688,0.00579565,2587.0,2586.5,0.00579565]
[1748567008889,0.00579565,2587.0,2586.9,2.1888492]
[1748567009606,0.06993857,2587.2,2586.9,7.1888492]
[1748567009783,0.00618884,2587.9,2587.1,5.3966492]
[1748567009989,0.00618884,2587.9,2587.0,1.6639]
[1748567009990,3.2078,2588.6,2587.8,2.1888492]
[1748567010192,3.2078,2588.6,2586.6,1.7141]
[1748567010193,3.2850499,2589.0,2588.3,2.1888492]
[1748567010392,3.2078,2588.7,2588.3,2.1888492]
[1748567010591,3.2078,2588.7,2588.6,2.1888492]
[1748567010891,0.00579565,2588.8,2588.6,2.1888492]
[1748567011096,0.00579565,2588.8,2588.7,2.1888492]
[1748567011388,0.00579565,2588.8,2588.3,1.6639]
[1748567011593,0.00579565,2588.8,2588.5,1.6639]
[1748567012193,0.00579565,2588.8,2588.6,2.1888492]
[1748567012386,0.00579565,2588.8,2588.7,2.1888492]
[1748567013496,3.2078,2590.6,2588.7,5.0]
[1748567013796,3.2078,2590.7,2590.0,2.1888492]
[1748567013986,3.2078,2590.7,2589.6,3.2078]
[1748567013987,1.652,2590.9,2590.1,3.8093492]
[1748567014291,3.2078,2590.5,2589.2,3.2078]
[1748567014500,0.00579565,2590.1,2589.8,2.1888492]
[1748567014690,0.00579565,2590.1,2589.9,1.6205]
[1748567015392,0.00579565,2590.1,2590.0,2.1888492]
[1748567015588,0.00579565,2590.1,2590.0,3.8093492]
[1748567015791,0.00579565,2590.1,2590.0,8.8093492]
[1748567016090,4.8598,2591.0,2590.0,8.8093492]
[1748567016283,3.2078,2591.0,2590.3,5.3966492]
[1748567017087,3.2078,2591.3,2590.5,2.1888492]
[1748567017289,3.2078,2591.0,2590.4,1.6346]
[1748567017484,1.74479325,2590.9,2590.3,3.2078]
[1748567017690,0.07719623,2590.8,2589.9,3.2078]
[1748567017893,3.2078,2590.6,2590.3,2.1888492]
[1748567018099,0.00579565,2590.7,2590.5,2.1888492]
[1748567018492,0.00579565,2590.7,2590.2,0.00579565]
[1748567018793,0.00579565,2590.7,2590.4,2.1888492]
[1748567018992,0.00579565,2590.7,2590.3,1.6346]
[1748567019191,1.71719565,2590.7,2590.3,1.6346]
[1748567019387,3.2078,2590.6,2590.2,0.00579565]
[1748567019585,3.2078,2590.3,2589.5,3.2078]
[1748567019784,3.2078,2589.9,2588.7,4.8106]
[1748567019985,1.7114,2589.8,2589.4,2.1888492]
[1748567020194,3.2078,2589.9,2589.5,2.1888492]
[1748567020397,3.2078,2589.9,2589.8,2.1888492]
[1748567020589,0.00579565,2590.1,2589.8,2.1888492]
[1748567021098,0.00579565,2590.1,2589.9,3.7916492]
[1748567021287,0.00579565,2590.1,2590.0,2.1888492]
[1748567021487,0.00579565,2590.1,2590.0,3.7916492]
[1748567021888,0.00579565,2590.1,2590.0,6.9994492]
[1748567022097,0.00579565,2590.1,2590.0,3.7916492]
[1748567022300,0.00579565,2590.1,2589.6,3.21359565]
[1748567022488,0.00579565,2590.1,2589.8,2.1888492]
[1748567022685,0.00579565,2590.1,2589.6,2.19464485]
[1748567022892,4.21626246,2590.0,2589.6,0.00579565]
[1748567023092,3.2078,2589.7,2589.6,0.00579565]
[1748567023287,3.2078,2589.7,2588.4,1.5607]
[1748567023288,4.21588396,2589.7,2588.4,4.7685]
[1748567023592,3.2078,2589.0,2588.4,1.5607]
[1748567023792,1.6437,2588.9,2588.4,1.5607]
[1748567024298,3.2078,2588.7,2588.4,1.56649565]
[1748567024610,3.2078,2588.7,2588.4,0.00579565]
[1748567024793,1.6437,2588.6,2588.4,0.00579565]
[1748567024997,1.00699943,2588.5,2587.5,3.2078]
[1748567025194,0.00579565,2588.8,2587.3,1.5797]
[1748567025195,3.2078,2587.9,2587.3,1.5797]
[1748567025401,1.6103,2587.8,2587.3,3.7685492]